fUST/lending_fUST_20260608
["ID","MTS","AMOUNT","RATE_DAILY","PERIOD"]
[424409243,1780848150000,-5000.0,0.00015679,2]
[424409244,1780848167000,-165.59332112,0.00016291,2]
[424409245,1780848184000,-500.0,0.00016398,2]
[424409248,1780848425000,-191.33533742,0.00016332,2]
[424409250,1780848433000,-500.0,0.00016332,2]
[424409251,1780848433000,-113.72481428,0.00016332,2]
[424409249,1780848433000,-135.83464997,0.00016332,2]
[424409253,1780848438000,-137.36468942,0.00016332,2]
[424409252,1780848438000,-386.27518572,0.00016332,2]
[424409254,1780848567000,-200.0,0.00015639,2]
[424409255,1780848610000,257.6,5e-05,2]
[424409280,1780848632000,-294.70539644,0.000165,7]
[424409292,1780848632000,-302.27751769,0.00016616,7]
[424409291,1780848632000,-500.0,0.00016616,7]
[424409281,1780848632000,-492.92760233,0.000165,2]
[424409272,1780848632000,-200.2,0.00015639,7]
[424409276,1780848632000,-54.53,0.00015849,2]
[424409275,1780848632000,-97.47,0.00015849,2]
[424409279,1780848632000,-1285.46373556,0.00016496,2]
[424409277,1780848632000,-614.821,0.00016009,2]
[424409278,1780848632000,-5000.0,0.0001612,2]
[424409274,1780848632000,-152.0,0.00015752,7]
[424409273,1780848632000,-152.0,0.00015752,7]
[424409283,1780848632000,-500.0,0.000165,7]
[424409282,1780848632000,-5944.46660602,0.000165,2]
[424409288,1780848632000,-500.0,0.00016616,7]
[424409284,1780848632000,-238.28,0.000166,2]
[424409297,1780848632000,-500.0,0.00016616,7]
[424409298,1780848632000,-597.51468312,0.00016616,7]
[424409295,1780848632000,-342.66844371,0.00016616,7]
[424409296,1780848632000,-500.0,0.00016616,7]
[424409294,1780848632000,-157.33155629,0.00016616,7]
[424409299,1780848632000,-694.71594636,0.00016678,2]
[424409290,1780848632000,-500.0,0.00016616,7]
[424409285,1780848632000,-238.28,0.000166,2]
[424409287,1780848632000,-238.3,0.000166,2]
[424409286,1780848632000,-238.28,0.000166,2]
[424409289,1780848632000,-151.5,0.00016616,7]
[424409293,1780848632000,-500.0,0.00016616,7]
[424409313,1780848638000,-500.0,0.00016686,2]
[424409311,1780848638000,-5000.0,0.00016511,2]
[424409312,1780848638000,-834.68193374,0.00016678,2]
[424409314,1780848638000,-314.43686081,0.00016687,2]
[424409318,1780848638000,-151.0,0.000167,2]
[424409319,1780848638000,-151.0,0.0001678,2]
[424409320,1780848638000,-750.99609073,0.0001679,2]
[424409317,1780848638000,-3947.00390927,0.00016687,2]
[424409315,1780848638000,-168.15840284,0.00016687,2]
[424409316,1780848638000,-1867.01854613,0.00016687,2]
[424409333,1780848641000,-489.11931254,0.0001679,2]
[424409335,1780848641000,-1449.98128828,0.0001679,2]
[424409336,1780848641000,-5704.90920036,0.0001679,2]
[424409334,1780848641000,-2467.45075736,0.0001679,2]
[424409350,1780848643000,-2224.24310911,0.0001679,2]
[424409351,1780848643000,-46775.75689088,0.0001679,2]
[424409412,1780848646000,-6012.0,0.0001679,2]
[424409411,1780848646000,-74849.14913828,0.0001679,2]
[424409408,1780848646000,-152.0,0.00015851,2]
[424409409,1780848646000,-5315.87868874,0.0001679,2]
[424409418,1780848925000,-500.0,7.999e-05,2]
[424409419,1780848978000,-170.0,7.999e-05,2]
[424409420,1780848995000,-76.85781054,7.999e-05,2]
[424409422,1780849048000,-452.21,7.999e-05,2]
[424409423,1780849060000,-25.50525559,7.999e-05,2]
[424409429,1780849114000,-152.69,8e-05,2]
[424409432,1780849153000,-152.0,8e-05,2]
[424409434,1780849154000,-140.87,8e-05,2]
[424409433,1780849154000,-10.13,8e-05,2]
[424409435,1780849155000,-21.26,8e-05,2]
[424409436,1780849156000,-144.42378872,8e-05,2]
[424409439,1780849167000,-353.57217801,8e-05,2]
[424409438,1780849167000,-162.13,8e-05,2]
[424409437,1780849167000,-17.70621128,8e-05,2]
[424409440,1780849221000,-1842.845,8e-05,2]
[424409441,1780849234000,-1842.845,8e-05,2]
[424409442,1780849247000,-186.0,8e-05,2]
[424409444,1780849328000,16197.93392384,0.00024954,120]
[424409455,1780849563000,-151.0,7.999e-05,2]
[424409456,1780849578000,-151.0,7.999e-05,2]
[424409457,1780849590000,-161.10134367,7.999e-05,2]
[424409458,1780849603000,-36.89865633,7.999e-05,2]
[424409459,1780849633000,-216.88128013,7.999e-05,2]
[424409463,1780849656000,-326.96462556,7.999e-05,2]
[424409462,1780849656000,-500.0,7.999e-05,2]
[424409461,1780849656000,-85.36535475,7.999e-05,2]
[424409460,1780849656000,-197.75336512,7.999e-05,2]
[424409464,1780849668000,-173.03537444,7.999e-05,2]
[424409465,1780849722000,-209.10338945,7.999e-05,2]
[424409466,1780849738000,-185.79,8e-05,2]
[424409503,1780849832000,-500.0,0.00016515,2]
[424409501,1780849832000,-500.0,0.00016515,2]
[424409498,1780849832000,-500.0,0.00016515,2]
[424409499,1780849832000,-500.0,0.00016515,2]
[424409507,1780849832000,-500.0,0.00016515,2]
[424409492,1780849832000,-429.06212299,0.0001651,2]
[424409490,1780849832000,-151.0,0.00016305,2]
[424409488,1780849832000,-152.0,0.00015916,2]
[424409485,1780849832000,-5000.0,0.00015757,2]
[424409494,1780849832000,-500.0,0.0001651,2]
[424409505,1780849832000,-418.18837068,0.00016515,2]
[424409496,1780849832000,-177.30941673,0.0001651,2]
[424409509,1780849832000,-335.45887723,0.00016515,2]
[424409522,1780849832000,-500.0,0.00016515,2]
[424409525,1780849832000,-261.85589832,0.00016515,2]
[424409524,1780849832000,-500.0,0.00016515,2]
[424409520,1780849832000,-81.81892883,0.00016515,2]
[424409521,1780849832000,-500.0,0.00016515,2]
[424409523,1780849832000,-500.0,0.00016515,2]
[424409511,1780849832000,-86.8081681,0.00016515,2]
[424409518,1780849832000,-500.0,0.00016515,2]
[424409515,1780849832000,-413.1918319,0.00016515,2]
[424409508,1780849832000,-164.54112277,0.00016515,2]
[424409519,1780849832000,-418.18107117,0.00016515,2]
[424409578,1780849838000,-929.45189641,0.00016509,2]
[424409573,1780849838000,-5000.0,0.00016344,2]
[424409574,1780849838000,-929.45189641,0.00016509,2]
[424409575,1780849838000,-929.45189641,0.00016509,2]
[424409576,1780849838000,-929.45189641,0.00016509,2]
[424409580,1780849838000,-929.45189641,0.00016509,2]
[424409581,1780849838000,-929.45189641,0.00016509,2]
[424409577,1780849838000,-929.45189641,0.00016509,2]
[424409585,1780849838000,-152.0,0.00016614,7]
[424409582,1780849838000,-378.72481601,0.00016515,2]
[424409584,1780849838000,-152.0,0.00016592,7]
[424409587,1780849838000,-66582.82739477,0.0001669,2]
[424409586,1780849838000,-152.0,0.00016614,7]
[424409583,1780849838000,-152.0,0.00016587,7]
[424409588,1780849838000,-76962.2936908,0.0001669,2]
[424409590,1780849838000,-265.13070949,0.000167,2]
[424409589,1780849838000,-847037.99713628,0.0001669,2]
[424409579,1780849838000,-929.45189641,0.00016509,2]
[424409596,1780849839000,-151.0,0.0001679,2]
[424409592,1780849839000,-6423.8260363,0.0001673,2]
[424409591,1780849839000,-170.91461808,0.000167,2]
[424409593,1780849839000,-1586.746895,0.0001673,2]
[424409597,1780849839000,-151.0,0.0001679,2]
[424409594,1780849839000,-848.41827037,0.00016739,2]
[424409595,1780849839000,-151.0,0.0001679,2]
[424409599,1780849839000,-260659.54080839,0.0001679,2]
[424409598,1780849839000,-160.64483504,0.0001679,2]
[424409600,1780849839000,-25630.78978661,0.0001679,2]
[424409601,1780849839000,-1385.59573854,0.0001679,2]
[424409603,1780849839000,-1689.72065281,0.0001679,2]
[424409602,1780849839000,-28432.98975697,0.0001679,2]
[424409624,1780849841000,-5339.53196822,0.0001679,2]
[424409622,1780849841000,-1854.97454165,0.0001679,2]
[424409623,1780849841000,-1604.14,0.0001679,2]
[424409621,1780849841000,-929.45189641,0.00016509,2]
[424409637,1780849843000,-164.0,0.00016849,3]
[424409635,1780849843000,-356600.32789137,0.0001679,2]
[424409638,1780849843000,-151.0,0.00016853,2]
[424409636,1780849843000,-600.0,0.00016845,2]
[424409681,1780849844000,-795.0,0.000174,2]
[424409669,1780849844000,-500.0,0.0001689,7]
[424409671,1780849844000,-500.0,0.0001689,7]
[424409674,1780849844000,-500.0,0.0001689,7]
[424409672,1780849844000,-500.0,0.0001689,7]
[424409675,1780849844000,-500.0,0.0001689,7]
[424409667,1780849844000,-500.0,0.0001689,7]
[424409673,1780849844000,-500.0,0.0001689,7]
[424409677,1780849844000,-500.0,0.0001689,7]
[424409679,1780849844000,-160.0,0.00017,7]
[424409680,1780849844000,-307.33866624,0.00017317,2]
[424409678,1780849844000,-500.0,0.0001689,7]
[424409697,1780849844000,-3620.86432098,0.000176,2]
[424409687,1780849844000,-10000.0,0.00017405,2]
[424409690,1780849844000,-3631.0,0.00017494,2]
[424409695,1780849844000,-160.0,0.00017585,2]
[424409693,1780849844000,-186.0,0.00017494,2]
[424409694,1780849844000,-1842.845,0.00017494,2]
[424409692,1780849844000,-538.748,0.00017494,2]
[424409698,1780849844000,-150.138,0.00017685,2]
[424409696,1780849844000,-629.49348648,0.000176,2]
[424409702,1780849844000,-3620.86432098,0.000178,2]
[424409699,1780849844000,-10000.0,0.000177,2]
[424409700,1780849844000,-300.0,0.00017743,2]
[424409665,1780849844000,-500.0,0.0001689,7]
[424409685,1780849844000,-151.0,0.00017401,2]
[424409670,1780849844000,-500.0,0.0001689,7]
[424409641,1780849844000,-500.0,0.0001689,7]
[424409668,1780849844000,-500.0,0.0001689,7]
[424409701,1780849844000,-629.49348648,0.000178,2]
[424409639,1780849844000,-500.0,0.0001689,7]
[424409640,1780849844000,-500.0,0.0001689,7]
[424409642,1780849844000,-500.0,0.0001689,7]
[424409643,1780849844000,-500.0,0.0001689,7]
[424409644,1780849844000,-500.0,0.0001689,7]
[424409645,1780849844000,-500.0,0.0001689,7]
[424409649,1780849844000,-500.0,0.0001689,7]
[424409646,1780849844000,-500.0,0.0001689,7]
[424409648,1780849844000,-500.0,0.0001689,7]
[424409647,1780849844000,-500.0,0.0001689,7]
[424409650,1780849844000,-500.0,0.0001689,7]
[424409666,1780849844000,-500.0,0.0001689,7]
[424409653,1780849844000,-500.0,0.0001689,7]
[424409652,1780849844000,-500.0,0.0001689,7]
[424409657,1780849844000,-500.0,0.0001689,7]
[424409651,1780849844000,-500.0,0.0001689,7]
[424409655,1780849844000,-500.0,0.0001689,7]
[424409656,1780849844000,-500.0,0.0001689,7]
[424409658,1780849844000,-500.0,0.0001689,7]
[424409661,1780849844000,-500.0,0.0001689,7]
[424409660,1780849844000,-500.0,0.0001689,7]
[424409659,1780849844000,-500.0,0.0001689,7]
[424409662,1780849844000,-500.0,0.0001689,7]
[424409663,1780849844000,-500.0,0.0001689,7]
[424409664,1780849844000,-500.0,0.0001689,7]
[424409654,1780849844000,-500.0,0.0001689,7]
[424409707,1780849844000,-629.49348648,0.00018,2]
[424409676,1780849844000,-278.71,0.0001689,7]
[424409708,1780849844000,-692.07424168,0.00018,2]
[424409738,1780849844000,-1000.0,0.000188,2]
[424409737,1780849844000,-1000.0,0.000188,2]
[424409736,1780849844000,-1000.0,0.000188,2]
[424409740,1780849844000,-1000.0,0.000188,2]
[424409739,1780849844000,-1000.0,0.000188,2]
[424409741,1780849844000,-1000.0,0.000188,2]
[424409745,1780849844000,-3620.86432098,0.000189,2]
[424409743,1780849844000,-706.498092,0.000188,2]
[424409744,1780849844000,-168.35730556,0.00018881,14]
[424409742,1780849844000,-1000.0,0.000188,2]
[424409746,1780849844000,-490.29,0.00018904,2]
[424409748,1780849844000,-1549.92699872,0.00019,2]
[424409734,1780849844000,-1000.0,0.000188,2]
[424409750,1780849844000,-151.0,0.00019045,2]
[424409752,1780849844000,-3620.86432098,0.000191,2]
[424409751,1780849844000,-168.35730556,0.000191,14]
[424409757,1780849844000,-500.0,0.00019178,2]
[424409755,1780849844000,-573.0533,0.00019178,2]
[424409754,1780849844000,-2292.233,0.00019178,2]
[424409753,1780849844000,-20000.0,0.000191,2]
[424409756,1780849844000,-500.0,0.00019178,2]
[424409758,1780849844000,-996.2,0.00019178,2]
[424409760,1780849844000,-500.0,0.00019178,2]
[424409761,1780849844000,-1146.55,0.00019178,2]
[424409759,1780849844000,-500.0,0.00019178,2]
[424409703,1780849844000,-264.18,0.00017803,2]
[424409749,1780849844000,-25000.0,0.00019,2]
[424409735,1780849844000,-1000.0,0.000188,2]
[424409747,1780849844000,-2075.0,0.00019,3]
[424409731,1780849844000,-692.07424168,0.000187,2]
[424409732,1780849844000,-3620.86432098,0.000187,2]
[424409704,1780849844000,-386.227,0.00017852,2]
[424409706,1780849844000,-151.0,0.00017949,2]
[424409710,1780849844000,-629.49348648,0.000181,2]
[424409711,1780849844000,-3620.86432098,0.000181,2]
[424409709,1780849844000,-3620.86432098,0.00018,2]
[424409712,1780849844000,-692.07424168,0.000182,2]
[424409713,1780849844000,-168.35730556,0.00018223,2]
[424409714,1780849844000,-180.0,0.00018253,2]
[424409715,1780849844000,-629.49348648,0.000183,2]
[424409716,1780849844000,-3620.86432098,0.000183,2]
[424409718,1780849844000,-692.07424168,0.000184,2]
[424409721,1780849844000,-166.07460741,0.00018461,2]
[424409719,1780849844000,-153.67027185,0.000184,2]
[424409705,1780849844000,-1324.32789391,0.00017911,2]
[424409733,1780849844000,-1000.0,0.000188,2]
[424409720,1780849844000,-168.35730556,0.00018442,7]
[424409730,1780849844000,-168.35730556,0.00018661,7]
[424409729,1780849844000,-490.29,0.0001863,2]
[424409727,1780849844000,-720.0,0.0001853,2]
[424409724,1780849844000,-151.0,0.00018497,2]
[424409728,1780849844000,-156.0,0.00018546,2]
[424409725,1780849844000,-692.07424168,0.000185,2]
[424409722,1780849844000,-195.74720071,0.00018461,2]
[424409723,1780849844000,-160.92721312,0.00018461,2]
[424409762,1780849844000,-650.09,0.00019178,2]
[424409717,1780849844000,-300.0,0.000184,2]
[424409726,1780849844000,-3620.86432098,0.000185,2]
[424409803,1780849845000,-500.0,0.00019178,2]
[424409804,1780849845000,-643.57,0.00019178,2]
[424409805,1780849845000,-500.0,0.00019178,2]
[424409800,1780849845000,-909.25,0.00019178,2]
[424409801,1780849845000,-500.0,0.00019178,2]
[424409790,1780849845000,-500.0,0.00019178,2]
[424409799,1780849845000,-500.0,0.00019178,2]
[424409797,1780849845000,-500.0,0.00019178,2]
[424409795,1780849845000,-500.0,0.00019178,2]
[424409796,1780849845000,-500.0,0.00019178,2]
[424409802,1780849845000,-500.0,0.00019178,2]
[424409798,1780849845000,-500.0,0.00019178,2]
[424409806,1780849845000,-2075.45,0.00019178,2]
[424409812,1780849845000,-500.0,0.00019178,2]
[424409810,1780849845000,-500.0,0.00019178,2]
[424409808,1780849845000,-500.0,0.00019178,2]
[424409811,1780849845000,-500.0,0.00019178,2]
[424409809,1780849845000,-500.0,0.00019178,2]
[424409813,1780849845000,-500.0,0.00019178,2]
[424409815,1780849845000,-500.0,0.00019178,2]
[424409818,1780849845000,-766.92,0.00019178,2]
[424409816,1780849845000,-500.0,0.00019178,2]
[424409814,1780849845000,-500.0,0.00019178,2]
[424409817,1780849845000,-557.48,0.00019178,2]
[424409819,1780849845000,-698.9,0.00019178,2]
[424409821,1780849845000,-500.0,0.00019178,2]
[424409807,1780849845000,-500.0,0.00019178,2]
[424409793,1780849845000,-906.94,0.00019178,2]
[424409763,1780849845000,-500.0,0.00019178,2]
[424409792,1780849845000,-1000.0,0.00019178,2]
[424409764,1780849845000,-508.63,0.00019178,2]
[424409824,1780849845000,-500.0,0.00019178,2]
[424409766,1780849845000,-500.0,0.00019178,2]
[424409765,1780849845000,-1468.03,0.00019178,2]
[424409768,1780849845000,-500.0,0.00019178,2]
[424409770,1780849845000,-500.0,0.00019178,2]
[424409769,1780849845000,-500.0,0.00019178,2]
[424409767,1780849845000,-500.0,0.00019178,2]
[424409772,1780849845000,-961.36,0.00019178,2]
[424409774,1780849845000,-500.0,0.00019178,2]
[424409771,1780849845000,-500.0,0.00019178,2]
[424409773,1780849845000,-500.0,0.00019178,2]
[424409775,1780849845000,-1619.87,0.00019178,2]
[424409794,1780849845000,-666.36,0.00019178,2]
[424409776,1780849845000,-500.0,0.00019178,2]
[424409779,1780849845000,-500.0,0.00019178,2]
[424409778,1780849845000,-647.81863674,0.00019178,2]
[424409780,1780849845000,-1190.19,0.00019178,2]
[424409781,1780849845000,-500.0,0.00019178,2]
[424409782,1780849845000,-500.0,0.00019178,2]
[424409784,1780849845000,-705.57,0.00019178,2]
[424409785,1780849845000,-500.0,0.00019178,2]
[424409783,1780849845000,-500.0,0.00019178,2]
[424409786,1780849845000,-856.89,0.00019178,2]
[424409787,1780849845000,-500.0,0.00019178,2]
[424409789,1780849845000,-393.44799205,0.00019178,2]
[424409791,1780849845000,-500.0,0.00019178,2]
[424409788,1780849845000,-784.84,0.00019178,2]
[424409777,1780849845000,-500.0,0.00019178,2]
[424409820,1780849845000,-500.0,0.00019178,2]
[424409823,1780849845000,-500.0,0.00019178,2]
[424409826,1780849845000,-500.0,0.00019178,2]
[424409859,1780849845000,-500.0,0.00019178,2]
[424409857,1780849845000,-508.69345333,0.00019178,2]
[424409860,1780849845000,-500.0,0.00019178,2]
[424409861,1780849845000,-500.0,0.00019178,2]
[424409862,1780849845000,-500.0,0.00019178,2]
[424409864,1780849845000,-676.65,0.00019178,2]
[424409863,1780849845000,-542.24,0.00019178,2]
[424409866,1780849845000,-500.0,0.00019178,2]
[424409865,1780849845000,-500.0,0.00019178,2]
[424409868,1780849845000,-718.33,0.00019178,2]
[424409867,1780849845000,-636.77595435,0.00019178,2]
[424409871,1780849845000,-500.0,0.00019178,2]
[424409873,1780849845000,-500.0,0.00019178,2]
[424409870,1780849845000,-500.0,0.00019178,2]
[424409872,1780849845000,-500.0,0.00019178,2]
[424409875,1780849845000,-1000.0,0.00019178,2]
[424409881,1780849845000,-500.0,0.00019178,2]
[424409874,1780849845000,-2913.93,0.00019178,2]
[424409879,1780849845000,-500.0,0.00019178,2]
[424409877,1780849845000,-500.0,0.00019178,2]
[424409878,1780849845000,-766.75,0.00019178,2]
[424409876,1780849845000,-4242.72,0.00019178,2]
[424409880,1780849845000,-1168.03,0.00019178,2]
[424409882,1780849845000,-612.32,0.00019178,2]
[424409884,1780849845000,-500.0,0.00019178,2]
[424409883,1780849845000,-500.0,0.00019178,2]
[424409822,1780849845000,-2206.3,0.00019178,2]
[424409858,1780849845000,-2324.37,0.00019178,2]
[424409856,1780849845000,-500.0,0.00019178,2]
[424409869,1780849845000,-500.0,0.00019178,2]
[424409851,1780849845000,-500.0,0.00019178,2]
[424409825,1780849845000,-500.0,0.00019178,2]
[424409855,1780849845000,-500.0,0.00019178,2]
[424409827,1780849845000,-897.98,0.00019178,2]
[424409829,1780849845000,-500.0,0.00019178,2]
[424409828,1780849845000,-500.0,0.00019178,2]
[424409830,1780849845000,-602.79,0.00019178,2]
[424409831,1780849845000,-500.0,0.00019178,2]
[424409832,1780849845000,-617.87,0.00019178,2]
[424409834,1780849845000,-993.47,0.00019178,2]
[424409835,1780849845000,-500.0,0.00019178,2]
[424409833,1780849845000,-500.0,0.00019178,2]
[424409837,1780849845000,-500.0,0.00019178,2]
[424409840,1780849845000,-500.0,0.00019178,2]
[424409839,1780849845000,-500.0,0.00019178,2]
[424409836,1780849845000,-1737.17,0.00019178,2]
[424409852,1780849845000,-500.0,0.00019178,2]
[424409853,1780849845000,-500.0,0.00019178,2]
[424409841,1780849845000,-2001.03,0.00019178,2]
[424409854,1780849845000,-500.0,0.00019178,2]
[424409850,1780849845000,-500.0,0.00019178,2]
[424409849,1780849845000,-509.11,0.00019178,2]
[424409846,1780849845000,-500.0,0.00019178,2]
[424409848,1780849845000,-500.0,0.00019178,2]
[424409847,1780849845000,-500.0,0.00019178,2]
[424409844,1780849845000,-1132.63,0.00019178,2]
[424409843,1780849845000,-371.55053622,0.00019178,2]
[424409842,1780849845000,-1316.99,0.00019178,2]
[424409838,1780849845000,-500.0,0.00019178,2]
[424409845,1780849845000,-500.0,0.00019178,2]
[424409925,1780849846000,-1383.62,0.00019178,2]
[424409931,1780849846000,-500.0,0.00019178,2]
[424409929,1780849846000,-842.28,0.00019178,2]
[424409924,1780849846000,-500.0,0.00019178,2]
[424409927,1780849846000,-500.0,0.00019178,2]
[424409928,1780849846000,-160.42545431,0.00019178,2]
[424409921,1780849846000,-500.0,0.00019178,2]
[424409922,1780849846000,-2499.19,0.00019178,2]
[424409918,1780849846000,-1051.07,0.00019178,2]
[424409923,1780849846000,-664.11,0.00019178,2]
[424409919,1780849846000,-500.0,0.00019178,2]
[424409930,1780849846000,-684.39,0.00019178,2]
[424409926,1780849846000,-500.0,0.00019178,2]
[424409933,1780849846000,-500.0,0.00019178,2]
[424409949,1780849846000,-500.0,0.00019178,2]
[424409937,1780849846000,-500.0,0.00019178,2]
[424409935,1780849846000,-517.85,0.00019178,2]
[424409938,1780849846000,-600.42,0.00019178,2]
[424409939,1780849846000,-481.69529696,0.00019178,2]
[424409940,1780849846000,-565.81,0.00019178,2]
[424409941,1780849846000,-2741.99,0.00019178,2]
[424409945,1780849846000,-837.4,0.00019178,2]
[424409942,1780849846000,-500.0,0.00019178,2]
[424409946,1780849846000,-500.0,0.00019178,2]
[424409943,1780849846000,-1139.97,0.00019178,2]
[424409944,1780849846000,-3730.47,0.00019178,2]
[424409947,1780849846000,-500.0,0.00019178,2]
[424409917,1780849846000,-500.0,0.00019178,2]
[424409932,1780849846000,-300.0,0.00019178,2]
[424409916,1780849846000,-1376.08,0.00019178,2]
[424409886,1780849846000,-500.0,0.00019178,2]
[424409912,1780849846000,-1202.71,0.00019178,2]
[424409952,1780849846000,-1964.76,0.00019178,2]
[424409885,1780849846000,-500.0,0.00019178,2]
[424409887,1780849846000,-968.26,0.00019178,2]
[424409889,1780849846000,-500.0,0.00019178,2]
[424409888,1780849846000,-1206.38,0.00019178,2]
[424409891,1780849846000,-500.0,0.00019178,2]
[424409890,1780849846000,-500.0,0.00019178,2]
[424409892,1780849846000,-500.0,0.00019178,2]
[424409895,1780849846000,-500.0,0.00019178,2]
[424409893,1780849846000,-500.0,0.00019178,2]
[424409897,1780849846000,-1300.35,0.00019178,2]
[424409896,1780849846000,-2207.89,0.00019178,2]
[424409894,1780849846000,-500.0,0.00019178,2]
[424409898,1780849846000,-500.0,0.00019178,2]
[424409900,1780849846000,-500.0,0.00019178,2]
[424409901,1780849846000,-500.0,0.00019178,2]
[424409903,1780849846000,-151.0,0.00019178,2]
[424409904,1780849846000,-151.0,0.00019178,2]
[424409902,1780849846000,-666.7,0.00019178,2]
[424409905,1780849846000,-426.36638891,0.00019178,2]
[424409899,1780849846000,-500.0,0.00019178,2]
[424409909,1780849846000,-893.09,0.00019178,2]
[424409906,1780849846000,-2224.3,0.00019178,2]
[424409910,1780849846000,-940.8,0.00019178,2]
[424409908,1780849846000,-500.0,0.00019178,2]
[424409907,1780849846000,-151.0,0.00019178,2]
[424409913,1780849846000,-500.0,0.00019178,2]
[424409914,1780849846000,-500.0,0.00019178,2]
[424409911,1780849846000,-672.19,0.00019178,2]
[424409915,1780849846000,-563.34286498,0.00019178,2]
[424409950,1780849846000,-686.44,0.00019178,2]
[424409920,1780849846000,-797.0,0.00019178,2]
[424409953,1780849846000,-1123.77,0.00019178,2]
[424409988,1780849846000,-6467.93,0.00019178,2]
[424409991,1780849846000,-500.0,0.00019178,2]
[424409990,1780849846000,-4181.77,0.00019178,2]
[424409989,1780849846000,-500.0,0.00019178,2]
[424409993,1780849846000,-500.0,0.00019178,2]
[424409992,1780849846000,-1324.71,0.00019178,2]
[424409994,1780849846000,-691.71,0.00019178,2]
[424409996,1780849846000,-2106.67,0.00019178,2]
[424409995,1780849846000,-500.0,0.00019178,2]
[424410001,1780849846000,-1086.02,0.00019178,2]
[424409999,1780849846000,-433.15446723,0.00019178,2]
[424410000,1780849846000,-500.0,0.00019178,2]
[424409997,1780849846000,-500.0,0.00019178,2]
[424409998,1780849846000,-1189.6,0.00019178,2]
[424410003,1780849846000,-500.0,0.00019178,2]
[424410002,1780849846000,-846.13,0.00019178,2]
[424410004,1780849846000,-544.02,0.00019178,2]
[424410006,1780849846000,-557.99,0.00019178,2]
[424410005,1780849846000,-500.0,0.00019178,2]
[424410007,1780849846000,-333.62303483,0.00019178,2]
[424410009,1780849846000,-500.0,0.00019178,2]
[424410008,1780849846000,-500.0,0.00019178,2]
[424410010,1780849846000,-831.65,0.00019178,2]
[424410012,1780849846000,-1495.68,0.00019178,2]
[424410011,1780849846000,-500.0,0.00019178,2]
[424410014,1780849846000,-500.0,0.00019178,2]
[424410013,1780849846000,-519.37,0.00019178,2]
[424410015,1780849846000,-502.02980742,0.00019178,2]
[424410017,1780849846000,-834.5,0.00019178,2]
[424409986,1780849846000,-500.0,0.00019178,2]
[424409987,1780849846000,-500.0,0.00019178,2]
[424409948,1780849846000,-6397.84,0.00019178,2]
[424409984,1780849846000,-3457.79,0.00019178,2]
[424409981,1780849846000,-500.0,0.00019178,2]
[424409956,1780849846000,-500.0,0.00019178,2]
[424409955,1780849846000,-500.0,0.00019178,2]
[424409957,1780849846000,-500.0,0.00019178,2]
[424409959,1780849846000,-500.0,0.00019178,2]
[424409960,1780849846000,-863.7,0.00019178,2]
[424409958,1780849846000,-779.15,0.00019178,2]
[424409961,1780849846000,-500.0,0.00019178,2]
[424409963,1780849846000,-1691.59,0.00019178,2]
[424409964,1780849846000,-14346.31,0.00019178,2]
[424409962,1780849846000,-500.0,0.00019178,2]